bitfinex/quotes_SOLUSD_20241103
["timestamp","ask_amount","ask_price","bid_price","bid_amount"]
[1730650250474,20.74370408,161.06,161.05,15.5231]
[1730650250668,20.74370408,161.06,161.03,6.21]
[1730650251275,20.74370408,161.06,161.03,21.735]
[1730650252007,20.74370408,161.04,161.01,6.5480811]
[1730650252195,20.74370408,161.03,161.01,6.5480811]
[1730650252398,20.74370408,161.03,161.01,0.3376811]
[1730650253896,20.74370408,161.07,161.01,53.1290811]
[1730650254795,20.74370408,161.05,161.01,53.1290811]
[1730650255696,20.74370408,161.04,161.01,53.1290811]
[1730650255997,20.74370408,161.02,161.01,0.3376811]
[1730650256581,20.74370408,161.03,161.01,6.5481811]
[1730650256781,20.74370408,161.04,161.01,6.5481811]
[1730650257095,20.74370408,161.03,161.01,22.0750811]
[1730650257298,20.74370408,161.02,161.01,22.0750811]
[1730650257796,20.74370408,161.03,161.01,22.0750811]
[1730650258883,20.74370408,161.03,161.01,21.9378934]
[1730650259402,20.74370408,161.06,161.01,21.9378934]
[1730650259781,20.74370408,161.05,161.01,21.9378934]
[1730650260185,20.74370408,161.06,161.01,21.9378934]
[1730650260801,20.74370408,161.05,161.01,21.9378934]
[1730650261208,27.36670408,161.13,161.03,20.74370408]
[1730650261392,27.36670408,161.13,161.05,20.74370408]
[1730650261891,20.74370408,161.16,161.09,20.74370408]
[1730650262089,27.20250408,161.18,161.1,20.74370408]
[1730650262292,20.74370408,161.19,161.11,73.50250408]
[1730650263022,20.74370408,161.17,161.11,52.7588]
[1730650263307,20.74370408,161.18,161.11,73.50250408]
[1730650264079,20.74370408,161.2,161.12,20.74370408]
[1730650264278,20.74370408,161.2,161.13,52.7523]
[1730650264483,20.74370408,161.2,161.13,73.49600408]
[1730650264811,20.74370408,161.21,161.14,20.74370408]
[1730650264998,20.74370408,161.2,161.13,21.7215]
[1730650265198,20.74370408,161.21,161.13,42.46520408]
[1730650265804,20.74370408,161.21,161.14,20.74370408]
[1730650266012,20.74370408,161.22,161.14,20.74370408]
[1730650266305,20.85468558,161.25,161.18,21.7148]
[1730650267822,20.85468558,161.25,161.19,26.4235]
[1730650268036,0.3114749,161.33,161.25,20.0]
[1730650268188,0.3114749,161.33,161.3,20.74370408]
[1730650269311,0.3114749,161.33,161.29,27.16720408]
[1730650269545,0.3114749,161.33,161.32,36.55089]
[1730650269716,0.3114749,161.33,161.32,81.19696808]
[1730650269886,0.3114749,161.33,161.32,57.16910408]
[1730650270210,0.3114749,161.33,161.32,46.94250408]
[1730650270386,0.3114749,161.33,161.32,26.94250408]
[1730650270591,0.3114749,161.33,161.32,6.1988]
[1730650271618,0.3114749,161.33,161.31,15.4977]
[1730650271908,20.74370408,161.32,161.24,20.74370408]
[1730650272102,33.63448854,161.27,161.2,21.712]
[1730650272299,0.3114749,161.33,161.24,33.63448854]
[1730650272685,33.94596344,161.33,161.25,33.63448854]
[1730650272887,33.63448854,161.32,161.25,33.63448854]
[1730650273290,0.3114749,161.33,161.23,33.63448854]
[1730650273291,33.63448854,161.31,161.23,33.63448854]
[1730650273486,33.63448854,161.32,161.24,33.63448854]
[1730650274212,33.63448854,161.3,161.24,33.63448854]
[1730650274384,33.63448854,161.3,161.25,21.7053]
[1730650275106,33.63448854,161.27,161.25,21.7053]
[1730650275410,33.63448854,161.28,161.25,21.7053]
[1730650275939,33.63448854,161.28,161.25,15.5038]
[1730650276103,33.63448854,161.28,161.21,41.7107]
[1730650276415,33.63448854,161.28,161.21,21.7107]
[1730650276620,33.63448854,161.26,161.21,21.7107]
[1730650276797,33.63448854,161.24,161.21,21.7107]
[1730650277192,33.63448854,161.24,161.21,15.5077]
[1730650277826,33.63448854,161.25,161.21,21.7107]
[1730650277990,33.63448854,161.24,161.21,15.5077]
[1730650278319,33.63448854,161.22,161.18,6.2042]
[1730650278517,33.63448854,161.23,161.18,6.2042]
[1730650279028,33.63448854,161.25,161.18,86.37048854]
[1730650279314,33.63448854,161.25,161.18,52.736]
[1730650279538,33.63448854,161.27,161.19,33.63448854]
[1730650279721,33.63448854,161.26,161.18,86.37048854]
[1730650280115,33.63448854,161.26,161.19,33.63448854]
[1730650280315,33.63448854,161.23,161.18,21.7148]
[1730650280528,33.63448854,161.25,161.18,21.7148]
[1730650280823,76.2006,161.28,161.18,21.7148]
[1730650280824,33.63448854,161.24,161.18,21.7148]
[1730650281024,33.63448854,161.25,161.18,21.7148]
[1730650281204,33.63448854,161.25,161.18,55.34928854]
[1730650281600,15.5216,161.3,161.18,55.34928854]
[1730650281601,33.63448854,161.32,161.24,33.63448854]
[1730650282318,33.63448854,161.3,161.23,33.63448854]
[1730650282903,33.63448854,161.3,161.21,49.11428854]
[1730650283111,33.63448854,161.3,161.21,33.63448854]
[1730650283293,33.63448854,161.3,161.2,24.827037]
[1730650283294,33.63448854,161.31,161.24,33.63448854]
[1730650283723,33.63448854,161.31,161.25,21.7053]
[1730650283914,33.63448854,161.3,161.25,21.7053]
[1730650284924,33.63448854,161.3,161.25,15.5038]
[1730650285124,33.63448854,161.32,161.25,15.5038]
[1730650285297,33.63448854,161.32,161.25,49.13828854]
[1730650285498,33.94596344,161.33,161.25,49.13828854]
[1730650285708,33.63448854,161.32,161.25,15.5038]
[1730650286021,33.63448854,161.31,161.25,15.5038]
[1730650286324,33.63448854,161.3,161.25,15.5038]
[1730650286521,33.63448854,161.31,161.25,15.5038]
[1730650286722,33.63448854,161.3,161.25,15.5038]
[1730650288129,33.63448854,161.31,161.25,15.5038]
[1730650288423,33.63448854,161.32,161.25,15.5038]
[1730650288631,33.94596344,161.33,161.25,49.13828854]
[1730650288842,0.3114749,161.33,161.26,33.63448854]
[1730650289131,0.3114749,161.33,161.32,33.63448854]
[1730650289606,0.3114749,161.33,161.3,33.63448854]
[1730650289808,0.3114749,161.33,161.31,33.63448854]
[1730650290023,0.3114749,161.33,161.32,33.63448854]
[1730650290431,0.3114749,161.33,161.31,33.63448854]
[1730650290633,0.3114749,161.33,161.32,6.1988]
[1730650291133,0.3114749,161.33,161.32,39.83328854]
[1730650292220,0.3114749,161.33,161.32,6.1988]
[1730650292623,0.3114749,161.33,161.31,21.6969]
[1730650294430,20.68348452,161.32,161.25,15.5038]
[1730650294610,20.68348452,161.3,161.25,15.5038]
[1730650294819,20.68348452,161.31,161.25,15.5038]
[1730650295017,20.68348452,161.3,161.25,15.5038]
[1730650295414,6.5102749,161.33,161.25,15.5038]
[1730650295415,20.68348452,161.31,161.25,15.5038]
[1730650296231,20.68348452,161.3,161.25,15.5038]
[1730650296640,20.68348452,161.26,161.25,15.5038]
[1730650296817,20.68348452,161.26,161.22,31.0123]
[1730650296818,20.68348452,161.26,161.21,21.7099]
[1730650297427,70.0,161.3,161.23,20.68348452]
[1730650297428,20.68348452,161.3,161.23,20.68348452]
[1730650297625,20.68348452,161.29,161.22,20.68348452]
[1730650297813,20.68348452,161.29,161.21,73.40878452]
[1730650298508,76.5099749,161.33,161.23,20.68348452]
[1730650298509,20.68348452,161.3,161.23,20.68348452]
[1730650298720,0.3114749,161.33,161.24,20.68348452]
[1730650298721,20.68348452,161.32,161.24,20.68348452]
[1730650298914,20.68348452,161.32,161.25,20.68348452]
[1730650299108,20.68348452,161.32,161.24,20.68348452]
[1730650299317,20.68348452,161.31,161.24,20.68348452]
[1730650299730,20.68348452,161.32,161.24,20.68348452]
[1730650299911,20.68348452,161.32,161.25,20.68348452]
[1730650300434,20.99495942,161.33,161.25,20.68348452]
[1730650300611,20.99495942,161.33,161.26,21.704]
[1730650301517,0.3114749,161.33,161.27,20.68348452]
[1730650301709,0.3114749,161.33,161.28,20.68348452]
[1730650302522,0.3114749,161.33,161.29,21.7]
[1730650302729,0.3114749,161.33,161.25,31.0066]
[1730650302730,20.68348452,161.3,161.24,6.2019]
[1730650302910,20.99495942,161.33,161.26,15.5028]
[1730650303115,20.99495942,161.33,161.26,36.18628452]
[1730650303116,0.3114749,161.33,161.26,36.18628452]
[1730650303315,20.99495942,161.33,161.26,36.18628452]
[1730650303516,20.68348452,161.32,161.26,15.5028]
[1730650303821,0.3114749,161.33,161.26,52.04268452]
[1730650304024,20.99495942,161.33,161.26,15.5028]
[1730650304230,0.3114749,161.33,161.28,20.68348452]
[1730650304433,0.3114749,161.33,161.3,20.68348452]
[1730650304637,7.49e-05,161.33,161.32,20.68348452]
[1730650304933,7.49e-05,161.33,161.32,20.80897452]
[1730650305308,7.49e-05,161.33,161.32,21.05995452]
[1730650305512,7.49e-05,161.33,161.32,36.91635452]
[1730650305720,7.49e-05,161.33,161.32,36.53988452]
[1730650306113,7.49e-05,161.33,161.32,56.91635452]
[1730650306721,0.3114749,161.41,161.32,56.91635452]
[1730650306722,0.3114749,161.41,161.33,20.37647]
[1730650306922,0.3114749,161.41,161.38,20.68348452]
[1730650307335,0.3114749,161.41,161.39,20.68348452]
[1730650307913,0.3114749,161.41,161.36,20.68348452]
[1730650308318,0.3114749,161.41,161.37,20.68348452]
[1730650308841,0.3114749,161.41,161.4,20.68348452]
[1730650309020,0.3114749,161.41,161.38,20.68348452]
[1730650310325,0.3114749,161.41,161.35,3.75347633]
[1730650310526,0.3114749,161.41,161.35,40.68348452]
[1730650310718,0.3114749,161.41,161.36,42.37408452]
[1730650310917,20.68348452,161.4,161.36,21.6906]
[1730650311245,20.99495942,161.41,161.36,21.6906]
[1730650311742,0.3114749,161.41,161.37,20.68348452]
[1730650311955,0.3114749,161.41,161.36,21.6906]
[1730650312132,20.99495942,161.41,161.36,21.6906]
[1730650312625,0.3114749,161.41,161.36,15.4933]
[1730650313023,0.3114749,161.41,161.36,36.17678452]
[1730650314231,0.3114749,161.41,161.37,20.68348452]
[1730650314439,0.3114749,161.41,161.36,15.4933]
[1730650314625,0.3114749,161.41,161.36,36.17678452]
[1730650314822,0.3114749,161.41,161.36,42.37408452]
[1730650315439,0.3114749,161.41,161.36,21.6906]
[1730650316031,0.3114749,161.41,161.36,42.37408452]
[1730650316236,0.3114749,161.41,161.36,73.36068452]
[1730650316436,0.3114749,161.41,161.37,20.68348452]
[1730650316827,0.3114749,161.41,161.38,21.6878]
[1730650318231,0.3114749,161.41,161.38,15.4913]
[1730650318745,0.3114749,161.41,161.38,36.17478452]
[1730650319734,0.3114749,161.41,161.38,15.4913]
[1730650320229,0.3114749,161.41,161.35,21.6919]
[1730650320437,0.3114749,161.41,161.35,73.36388452]
[1730650320828,0.3114749,161.41,161.35,52.6804]
[1730650321751,0.3114749,161.41,161.35,73.36388452]
[1730650322733,0.3114749,161.41,161.35,52.6804]
[1730650322734,20.99495942,161.41,161.35,52.6804]
[1730650322936,20.68348452,161.39,161.35,21.6919]
[1730650323632,20.68348452,161.37,161.35,15.4942]
[1730650323828,20.68348452,161.36,161.25,27.15697789]
[1730650324035,20.68348452,161.29,161.28,15.5009]
[1730650324657,20.68348452,161.29,161.26,6.2011]
[1730650325168,20.68348452,161.27,161.24,21.7057]
[1730650325829,20.68348452,161.26,161.24,15.504]
[1730650326159,20.68348452,161.25,161.22,6.2027]
[1730650326945,20.68348452,161.25,161.22,21.7094]
[1730650327129,20.68348452,161.26,161.22,21.7094]
[1730650327336,20.68348452,161.27,161.22,21.7094]
[1730650327643,20.68348452,161.26,161.22,21.7094]
[1730650327839,20.68348452,161.27,161.22,15.5067]
[1730650328040,20.68348452,161.31,161.24,20.68348452]
[1730650328245,20.68348452,161.34,161.27,20.68348452]
[1730650328446,20.68348452,161.33,161.26,20.68348452]
[1730650328649,20.68348452,161.34,161.27,40.68348452]
[1730650329537,20.68348452,161.35,161.28,20.68348452]
[1730650329941,20.68348452,161.35,161.29,21.7]
[1730650330444,20.68348452,161.36,161.29,42.38348452]
[1730650330626,20.68348452,161.35,161.29,21.7]
[1730650330833,20.68348452,161.33,161.29,21.7]
[1730650331027,20.68348452,161.3,161.22,73.40638452]
[1730650331229,20.68348452,161.3,161.23,23.03611895]
[1730650331456,20.68348452,161.3,161.23,20.68348452]
[1730650331832,20.68348452,161.27,161.22,21.7094]
[1730650332656,20.68348452,161.25,161.22,21.7094]
[1730650332839,20.68348452,161.24,161.22,21.7094]
[1730650333039,20.68348452,161.25,161.22,21.7094]
[1730650333240,20.68348452,161.24,161.22,21.7094]
[1730650333462,20.68348452,161.23,161.16,21.7175]
[1730650333655,20.68348452,161.22,161.16,21.7175]
[1730650333857,70.1,161.27,161.16,42.40098452]
[1730650333858,20.68348452,161.23,161.16,42.40098452]
[1730650334256,20.68348452,161.22,161.16,21.7175]
[1730650334653,20.68348452,161.2,161.16,21.7175]
[1730650335163,20.68348452,161.2,161.16,15.5125]
[1730650335672,20.68348452,161.17,161.16,15.5125]
[1730650336646,76.269,161.23,161.16,15.5125]
[1730650336647,20.68348452,161.18,161.16,15.5125]
[1730650338461,90.68348452,161.17,161.13,0.3114749]
[1730650338661,20.68348452,161.14,161.13,0.3114749]
[1730650340065,20.68348452,161.16,161.13,6.5175749]
[1730650340239,20.68348452,161.16,161.13,22.0329749]
[1730650340449,20.68348452,161.18,161.13,53.0637749]
[1730650340649,20.68348452,161.17,161.13,53.0637749]
[1730650341166,20.68348452,161.2,161.13,73.74725942]
[1730650341463,20.68348452,161.18,161.13,53.0637749]
[1730650341767,20.68348452,161.19,161.13,53.0637749]
[1730650341968,20.68348452,161.2,161.13,73.74725942]
[1730650342144,20.68348452,161.21,161.14,20.68348452]
[1730650342544,20.68348452,161.21,161.15,21.7187]
[1730650342966,20.68348452,161.25,161.18,20.68348452]
[1730650343180,20.68348452,161.26,161.18,20.68348452]
[1730650343968,6.2483,161.28,161.15,52.7456]
[1730650343969,20.68348452,161.24,161.17,20.68348452]
[1730650344273,20.68348452,161.24,161.15,52.7456]
[1730650344274,33.64905537,161.23,161.16,33.64905537]
[1730650344472,33.64905537,161.26,161.2,21.712]
[1730650345451,33.64905537,161.28,161.2,55.36105537]
[1730650345650,33.64905537,161.29,161.21,33.64905537]
[1730650346674,33.64905537,161.29,161.22,21.7094]
[1730650346848,6.2483,161.32,161.22,21.7094]
[1730650346849,33.64905537,161.31,161.23,33.64905537]
[1730650347182,33.64905537,161.28,161.22,52.7229]
[1730650347773,33.64905537,161.31,161.24,33.64905537]
[1730650348775,33.64905537,161.31,161.25,21.7053]
[1730650349147,33.64905537,161.29,161.25,21.7053]
[1730650350469,33.64905537,161.28,161.25,21.7053]
[1730650350670,12.4471,161.32,161.22,21.7094]
[1730650350671,33.64905537,161.26,161.22,21.7094]
[1730650350875,33.64905537,161.29,161.22,55.35845537]
[1730650351054,33.64905537,161.29,161.22,86.37195537]
[1730650351359,33.64905537,161.29,161.22,52.7229]
[1730650351554,33.64905537,161.28,161.22,52.7229]
[1730650352178,33.64905537,161.29,161.22,86.37195537]
[1730650352473,33.64905537,161.26,161.22,21.7094]
[1730650352649,33.64905537,161.26,161.2,31.0173]
[1730650353687,33.64905537,161.27,161.2,86.37835537]
[1730650354054,33.64905537,161.29,161.22,33.64905537]
[1730650354396,33.64905537,161.3,161.23,33.64905537]
[1730650355070,33.64905537,161.31,161.24,33.64905537]
[1730650355985,33.64905537,161.27,161.21,21.7107]
[1730650356286,33.64905537,161.26,161.21,21.7107]
[1730650356449,33.64905537,161.25,161.21,21.7107]
[1730650357269,33.64905537,161.23,161.21,21.7107]
[1730650357560,33.64905537,161.22,161.21,15.5077]
[1730650357775,33.64905537,161.22,161.17,15.5106]
[1730650357977,33.64905537,161.22,161.15,64.67485537]
[1730650358176,33.64905537,161.22,161.15,31.0258]
[1730650358365,33.64905537,161.21,161.15,31.0258]
[1730650358683,33.64905537,161.23,161.15,64.67485537]
[1730650359262,70.1,161.27,161.15,64.67485537]
[1730650359467,33.64905537,161.22,161.15,31.0258]
[1730650359675,33.64905537,161.24,161.16,33.64905537]
[1730650359981,33.64905537,161.28,161.21,33.64905537]
[1730650360168,33.64905537,161.29,161.22,33.64905537]
[1730650361059,33.64905537,161.29,161.17,0.1]
[1730650361060,33.64905537,161.27,161.2,33.64905537]
[1730650361675,33.64905537,161.28,161.21,86.37515537]
[1730650362256,33.64905537,161.27,161.21,52.7261]
[1730650362662,33.64905537,161.24,161.21,15.5077]
[1730650362868,33.64905537,161.23,161.21,15.5077]
[1730650363776,33.64905537,161.23,161.16,33.64905537]
[1730650363777,33.64905537,161.24,161.17,72.7392]
[1730650364284,33.64905537,161.23,161.17,52.7392]
[1730650364459,33.64905537,161.22,161.17,21.7161]
[1730650364658,33.64905537,161.26,161.18,33.64905537]
[1730650365265,33.64905537,161.27,161.19,33.64905537]
[1730650365560,33.64905537,161.26,161.18,53.64905537]
[1730650365783,33.64905537,161.26,161.19,86.38165537]
[1730650366084,20.7031487,161.26,161.19,73.4357487]
[1730650366578,70.0,161.31,161.19,73.4357487]
[1730650366579,20.7031487,161.27,161.2,20.7031487]
[1730650366778,20.7031487,161.27,161.19,73.4357487]
[1730650367858,20.7031487,161.27,161.19,104.4549487]
[1730650368973,20.7031487,161.29,161.22,20.7031487]
[1730650369181,20.7031487,161.28,161.21,20.7031487]
[1730650369479,20.7031487,161.28,161.2,20.7031487]
[1730650369683,20.7031487,161.28,161.21,20.7031487]
[1730650369859,20.7031487,161.3,161.22,67.2233487]
[1730650370376,20.7031487,161.29,161.22,67.2233487]
[1730650370963,20.7031487,161.29,161.22,46.5202]
[1730650371680,20.7031487,161.26,161.22,46.5202]
[1730650371982,20.7031487,161.28,161.22,46.5202]
[1730650372173,20.7031487,161.29,161.22,46.5202]
[1730650372686,20.7031487,161.25,161.22,46.5202]
[1730650372987,20.7031487,161.24,161.22,15.5067]
[1730650373493,20.7031487,161.23,161.15,21.7187]
[1730650373679,20.7031487,161.22,161.16,2.36402297]
[1730650373870,70.2,161.27,161.17,21.7161]
[1730650373871,20.7031487,161.21,161.17,21.7161]
[1730650374186,6.2011,161.26,161.17,21.7161]
[1730650374187,20.7031487,161.22,161.17,21.7161]
[1730650374761,20.7031487,161.22,161.17,15.5115]
[1730650375669,20.7031487,161.19,161.17,15.5115]
[1730650376190,20.7031487,161.18,161.17,15.5115]
[1730650376592,20.5031487,161.18,161.17,15.5115]
[1730650376791,20.5031487,161.18,161.14,21.7201]
[1730650377374,20.7031487,161.19,161.14,21.7201]
[1730650377700,20.7031487,161.16,161.14,21.7201]
[1730650377909,20.7031487,161.15,161.14,15.5144]
[1730650378386,20.7031487,161.17,161.14,21.7201]
[1730650378586,20.7031487,161.18,161.14,21.7201]
[1730650378967,20.7031487,161.17,161.14,21.7201]
[1730650380377,20.7031487,161.19,161.14,21.7201]
[1730650380689,20.7031487,161.18,161.14,21.7201]
[1730650382594,20.7031487,161.19,161.14,21.7201]
[1730650382766,20.7031487,161.18,161.14,21.7201]
[1730650382970,6.2023,161.23,161.13,0.3114749]
[1730650382971,20.7031487,161.15,161.13,0.3114749]
[1730650383172,20.7031487,161.14,161.13,0.3114749]
[1730650384579,20.7031487,161.15,161.13,6.5175749]
[1730650385202,20.7031487,161.14,161.13,6.5175749]
[1730650386092,20.7031487,161.15,161.13,6.5175749]
[1730650386472,20.7031487,161.18,161.13,22.0329749]
[1730650386680,20.7031487,161.17,161.13,22.0329749]
[1730650387583,20.7031487,161.18,161.13,22.0329749]
[1730650387886,20.7031487,161.17,161.13,22.0329749]
[1730650388508,20.7031487,161.18,161.13,22.0329749]
[1730650389011,20.7031487,161.2,161.13,73.7669236]
[1730650389183,20.7031487,161.21,161.14,20.7031487]
[1730650389580,20.7031487,161.21,161.15,21.7187]
[1730650389778,6.5827,161.23,161.15,42.4218487]
[1730650389779,20.7031487,161.22,161.15,42.4218487]
[1730650389974,20.7031487,161.24,161.16,20.7031487]
[1730650390214,20.7031487,161.24,161.17,20.7031487]
[1730650390380,20.7031487,161.23,161.16,20.7031487]
[1730650390787,20.7031487,161.21,161.15,52.7456]
[1730650391392,20.7031487,161.21,161.15,73.4487487]
[1730650391587,20.7031487,161.21,161.15,52.7456]
[1730650394490,20.7031487,161.2,161.15,52.7456]
[1730650394688,20.7031487,161.17,161.15,15.5134]
[1730650394913,20.7031487,161.17,161.15,21.7187]
[1730650395903,20.7031487,161.16,161.15,15.5134]
[1730650396210,20.6531487,161.16,161.15,15.5134]
[1730650396905,20.6531487,161.16,161.13,31.3422749]
[1730650396906,20.6531487,161.16,161.13,0.3114749]
[1730650397116,20.7031487,161.15,161.13,0.3114749]
[1730650397291,20.7031487,161.14,161.13,0.3114749]
[1730650400221,44.9565027,161.14,161.13,0.3114749]
[1730650400390,44.5800327,161.14,161.13,0.3114749]
[1730650400808,44.4800327,161.14,161.13,0.3114749]
[1730650401105,20.7031487,161.14,161.13,0.3114749]
[1730650401291,20.7031487,161.15,161.13,6.5175749]
[1730650401491,20.7031487,161.14,161.13,6.5175749]
[1730650402505,20.7031487,161.14,161.13,0.3114749]
[1730650403707,26.9088487,161.14,161.13,0.3114749]
[1730650403918,20.7031487,161.14,161.13,0.3114749]
[1730650404801,44.4800327,161.14,161.13,0.3114749]
[1730650405102,20.7031487,161.14,161.13,0.3114749]
[1730650406392,26.9088487,161.14,161.13,0.3114749]
[1730650406607,20.7031487,161.14,161.13,0.3114749]
[1730650406914,121.2622027,161.14,161.13,0.3114749]
[1730650407288,121.0622027,161.14,161.13,0.3114749]
[1730650407484,50.6857327,161.14,161.13,0.3114749]
[1730650407689,20.7031487,161.14,161.13,0.3114749]
[1730650408111,121.2622027,161.14,161.13,0.3114749]
[1730650410309,23.776884,161.08,161.05,0.3114749]
[1730650410503,70.0,161.09,161.05,0.3114749]
[1730650410504,20.7031487,161.06,161.05,0.3114749]
[1730650411603,44.5800327,161.06,161.05,0.3114749]
[1730650411897,50.7888327,161.06,161.05,0.3114749]
[1730650412315,27.0119487,161.06,161.05,0.3114749]
[1730650412514,50.7888327,161.06,161.05,0.3114749]
[1730650412700,51.2653027,161.06,161.05,0.3114749]
[1730650417323,51.2653027,161.06,160.97,0.3114749]
[1730650417324,23.776884,161.03,160.97,0.3114749]
[1730650417515,20.7031487,161.0,160.97,0.3114749]
[1730650418025,20.7031487,161.03,160.97,22.0545749]
[1730650418319,20.7031487,161.04,160.97,42.7577236]
[1730650419096,20.7031487,161.04,160.97,73.8193236]
[1730650419509,20.7031487,161.03,160.97,53.1161749]
[1730650422139,20.7031487,161.01,160.97,22.0545749]
[1730650422313,20.7031487,160.98,160.97,0.3114749]
[1730650422823,26.9150487,160.98,160.97,0.3114749]
[1730650422999,120.6919327,160.98,160.97,0.3114749]
[1730650423608,20.7031487,160.98,160.97,0.3114749]
[1730650424007,26.9150487,160.98,160.97,0.3114749]
[1730650424395,50.6919327,160.98,160.97,0.3114749]
[1730650424900,120.6919327,160.98,160.97,0.3114749]
[1730650425521,141.2684027,160.98,160.97,0.3114749]
[1730650426525,161.9715514,160.98,160.97,0.3114749]
[1730650426722,161.9715514,160.98,160.89,0.3114749]
[1730650426723,23.776884,160.92,160.89,0.3114749]
[1730650426904,44.4800327,160.9,160.89,0.3114749]
[1730650428227,44.6055227,160.9,160.89,0.3114749]
[1730650428421,20.7031487,160.9,160.89,0.3114749]
[1730650432118,20.7031487,160.92,160.89,15.8499749]
[1730650432316,20.7031487,160.97,160.9,20.7031487]
[1730650432518,20.7031487,160.98,160.91,20.7031487]
[1730650432922,12.3988,161.02,160.93,20.7031487]
[1730650432923,20.7031487,161.0,160.93,20.7031487]
[1730650433225,85.1207,161.05,160.94,20.7031487]
[1730650433226,20.7031487,161.01,160.94,20.7031487]
[1730650433439,20.7031487,161.02,160.95,20.7031487]
[1730650433611,6.2092,161.06,160.99,20.7031487]
[1730650433612,20.7031487,161.06,160.99,20.7031487]
[1730650433814,20.7031487,161.07,161.0,20.7031487]
[1730650434028,20.7031487,161.07,161.01,20.7031487]
[1730650434227,20.7031487,161.08,161.01,20.7031487]
[1730650434531,20.7031487,161.07,161.0,20.7031487]
[1730650434733,20.7031487,161.07,161.01,20.7031487]
[1730650434945,20.7031487,161.08,161.02,21.7364]
[1730650435111,20.7031487,161.05,161.02,21.7364]
[1730650435314,20.7031487,161.03,160.98,21.7409]
[1730650435830,20.7031487,161.04,160.98,21.7409]
[1730650436135,0.1,161.08,160.98,21.7409]
[1730650436136,20.7031487,161.01,160.98,21.7409]
[1730650436436,20.7031487,161.03,160.98,15.529]
[1730650436811,20.7031487,161.02,160.98,15.529]
[1730650437818,20.7031487,161.03,160.98,15.529]
[1730650438020,20.7031487,161.07,161.0,20.7031487]
[1730650438335,20.7031487,161.06,160.99,20.7031487]
[1730650438719,20.7031487,161.05,160.98,36.2321487]
[1730650438921,20.7031487,161.04,160.98,15.529]
[1730650439318,20.7031487,161.05,160.98,36.2321487]
[1730650439817,20.7031487,161.05,160.98,21.7409]
[1730650440018,20.7031487,161.04,160.98,21.7409]
[1730650440810,20.7031487,161.02,160.98,21.7409]
[1730650441011,20.7031487,161.01,160.98,21.7409]
[1730650441215,20.7031487,161.02,160.98,21.7409]
[1730650442142,20.7031487,161.02,160.96,31.0636]
[1730650443050,20.7031487,160.97,160.95,21.7458]
[1730650443214,70.0,161.03,160.89,0.3114749]
[1730650443215,20.7031487,160.96,160.93,6.2135]
[1730650443534,20.7031487,160.94,160.91,21.75]
[1730650443722,20.7031487,160.93,160.91,15.5357]
[1730650444125,20.7031487,160.99,160.89,0.4114749]
[1730650444313,20.7031487,161.0,160.89,0.3114749]
[1730650444517,20.7031487,160.99,160.92,20.7031487]
[1730650445022,20.7031487,161.02,160.95,20.7031487]
[1730650445336,120.9709,161.04,160.92,20.7031487]
[1730650445337,46.9031487,161.0,160.92,20.7031487]
[1730650445515,20.7031487,160.98,160.9,20.7031487]
[1730650445716,20.7031487,160.96,160.89,21.0146236]
[1730650446238,20.7031487,160.98,160.9,42.4557487]
[1730650446815,20.7031487,160.94,160.9,21.7526]
[1730650447036,20.7031487,160.91,160.89,0.3114749]
[1730650448050,44.4800327,160.9,160.89,0.3114749]
[1730650449219,20.7031487,160.91,160.89,0.3114749]
[1730650449523,20.7031487,160.92,160.89,6.5268749]
[1730650449838,20.7031487,160.92,160.89,22.0653749]
[1730650450039,20.7031487,160.91,160.89,22.0653749]
[1730650450334,20.7031487,160.9,160.89,15.8499749]
[1730650452034,20.7031487,160.9,160.89,0.3114749]
[1730650454230,76.5709,160.99,160.89,22.0653749]
[1730650454414,20.7031487,160.95,160.89,22.0653749]
[1730650454744,20.7031487,160.91,160.89,22.0653749]
[1730650455034,20.7031487,160.92,160.89,22.0653749]
[1730650455548,20.7031487,160.93,160.89,22.0653749]
[1730650457043,20.7031487,160.92,160.89,22.0653749]
[1730650459722,20.7031487,160.94,160.89,22.0653749]
[1730650460833,20.7031487,160.93,160.89,22.0653749]
[1730650462427,20.7031487,160.92,160.89,22.0653749]
[1730650462634,20.7031487,160.93,160.89,22.0653749]
[1730650463018,20.7031487,160.94,160.89,22.0653749]
[1730650463223,20.7031487,160.96,160.89,73.8456236]
[1730650463425,20.7031487,160.92,160.89,22.0653749]
[1730650463728,20.7031487,160.91,160.89,22.0653749]
[1730650464723,20.7031487,160.9,160.89,0.3114749]
[1730650467043,16.0177,160.94,160.89,22.0653749]
[1730650467044,20.7031487,160.92,160.89,22.0653749]
[1730650467236,20.7031487,160.93,160.89,22.0653749]
[1730650469641,20.7031487,160.92,160.89,22.0653749]
[1730650471646,26.2,161.0,160.92,0.12549]
[1730650471826,26.2,161.0,160.94,20.7031487]
[1730650472832,46.9031487,161.0,160.94,21.7471]